{"text_format":"1","workbook":"xlsx","n_sheets":13,"sheets":["JANVIER","FEVRIER","MARS","AVRIL","MAI","JUIN","JUILLET","AOUT","SEPTEMBRE","OCTOBRE","NOVEMBRE","DECEMBRE","Feuil2"],"not_rendered":{"charts":0,"images":26,"macros":1,"external_links":0,"defined_names":0,"comments":0,"pivot_tables":0},"unopened":[],"bounds":{"document_bytes":16777216,"sheet_cells":100000,"rows_first":2000,"rows_last":500,"rows_between":2000,"halvings":0,"cell_chars":16384,"cell_head_chars":4096},"cells_cut":0,"cells_raw":0,"read":"whole","date_system":"1900"}

{"sheet":"JANVIER","index":0,"n_rows":55,"n_cols":11,"rows_kept":55,"cut":false,"hidden":false,"merged":[[1,4,1,5],[3,4,3,5]]}
[]
[null,null,null,null,"SUIVI DES MAILS ADMINISTRE "]
[]
[null,null,null,null,"2019-01-01"]
[null,null,null,null,"TOTAL COURRIERS",{"$f":"COUNT(D10:D55)","v":0}]
[null,null,null,null,"DANS LES DELAIS",{"$f":"COUNTIF(J10:J55,\"<=\"&5)-COUNTIF(J10:J55,\"<\"&1)","v":0}]
[null,null,null,null,"HORS DELAIS",{"$f":"COUNTIF(J10:J55,\">=6\")","v":0}]
[]
["DATE DE\nREMISE","AGENT\nTRAITANT","NOM\nADMINISTRE","DATE DE RECEPTION","N° IDENTIFIANT\nDEFENSE","NOM","PRENOM","OBJET","DATE DE REPONSE","DELAI DE REPONSE","OBSERVATIONS"]
[null,null,null,null,null,null,null,null,null,{"$f":"NETWORKDAYS(D10,I10)","v":0}]
[null,null,null,null,null,null,null,null,null,{"$f":"NETWORKDAYS(D11,I11)","v":0}]
[null,null,null,null,null,null,null,null,null,0]
[null,null,null,null,null,null,null,null,null,0]
[null,null,null,null,null,null,null,null,null,0]
[null,null,null,null,null,null,null,null,null,0]
[null,null,null,null,null,null,null,null,null,0]
[null,null,null,null,null,null,null,null,null,0]
[null,null,null,null,null,null,null,null,null,0]
[null,null,null,null,null,null,null,null,null,0]
[null,null,null,null,null,null,null,null,null,0]
[null,null,null,null,null,null,null,null,null,0]
[null,null,null,null,null,null,null,null,null,0]
[null,null,null,null,null,null,null,null,null,0]
[null,null,null,null,null,null,null,null,null,0]
[null,null,null,null,null,null,null,null,null,0]
[null,null,null,null,null,null,null,null,null,0]
[null,null,null,null,null,null,null,null,null,0]
[null,null,null,null,null,null,null,null,null,0]
[null,null,null,null,null,null,null,null,null,0]
[null,null,null,null,null,null,null,null,null,0]
[null,null,null,null,null,null,null,null,null,0]
[null,null,null,null,null,null,null,null,null,0]
[null,null,null,null,null,null,null,null,null,0]
[null,null,null,null,null,null,null,null,null,0]
[null,null,null,null,null,null,null,null,null,0]
[null,null,null,null,null,null,null,null,null,0]
[null,null,null,null,null,null,null,null,null,0]
[null,null,null,null,null,null,null,null,null,0]
[null,null,null,null,null,null,null,null,null,0]
[null,null,null,null,null,null,null,null,null,0]
[null,null,null,null,null,null,null,null,null,0]
[null,null,null,null,null,null,null,null,null,0]
[null,null,null,null,null,null,null,null,null,0]
[null,null,null,null,null,null,null,null,null,0]
[null,null,null,null,null,null,null,null,null,0]
[null,null,null,null,null,null,null,null,null,0]
[null,null,null,null,null,null,null,null,null,0]
[null,null,null,null,null,null,null,null,null,0]
[null,null,null,null,null,null,null,null,null,0]
[null,null,null,null,null,null,null,null,null,0]
[null,null,null,null,null,null,null,null,null,0]
[null,null,null,null,null,null,null,null,null,0]
[null,null,null,null,null,null,null,null,null,0]
[null,null,null,null,null,null,null,null,null,0]
[null,null,null,null,null,null,null,null,null,0]

{"sheet":"FEVRIER","index":1,"n_rows":55,"n_cols":11,"rows_kept":55,"cut":false,"hidden":false,"merged":[[1,4,1,5],[3,4,3,5]]}
[]
[null,null,null,null,"SUIVI DES MAILS ADMINISTRE "]
[]
[null,null,null,null,"2019-02-01"]
[null,null,null,null,"TOTAL COURRIERS",{"$f":"COUNT(D10:D55)","v":0}]
[null,null,null,null,"DANS LES DELAIS",{"$f":"COUNTIF(J10:J55,\"<=\"&5)-COUNTIF(J10:J55,\"<\"&1)","v":0}]
[null,null,null,null,"HORS DELAIS",{"$f":"COUNTIF(J10:J55,\">=6\")","v":0}]
[]
["DATE DE\nREMISE","AGENT\nTRAITANT","NOM\nADMINISTRE","DATE DE RECEPTION","N° IDENTIFIANT\nDEFENSE","NOM","PRENOM","OBJET","DATE DE REPONSE","DELAI DE REPONSE","OBSERVATIONS"]
[null,null,null,null,null,null,null,null,null,{"$f":"NETWORKDAYS(D10,I10)","v":0}]
[null,null,null,null,null,null,null,null,null,{"$f":"NETWORKDAYS(D11,I11)","v":0}]
[null,null,null,null,null,null,null,null,null,0]
[null,null,null,null,null,null,null,null,null,0]
[null,null,null,null,null,null,null,null,null,0]
[null,null,null,null,null,null,null,null,null,0]
[null,null,null,null,null,null,null,null,null,0]
[null,null,null,null,null,null,null,null,null,0]
[null,null,null,null,null,null,null,null,null,0]
[null,null,null,null,null,null,null,null,null,0]
[null,null,null,null,null,null,null,null,null,0]
[null,null,null,null,null,null,null,null,null,0]
[null,null,null,null,null,null,null,null,null,0]
[null,null,null,null,null,null,null,null,null,0]
[null,null,null,null,null,null,null,null,null,0]
[null,null,null,null,null,null,null,null,null,0]
[null,null,null,null,null,null,null,null,null,0]
[null,null,null,null,null,null,null,null,null,0]
[null,null,null,null,null,null,null,null,null,0]
[null,null,null,null,null,null,null,null,null,0]
[null,null,null,null,null,null,null,null,null,0]
[null,null,null,null,null,null,null,null,null,0]
[null,null,null,null,null,null,null,null,null,0]
[null,null,null,null,null,null,null,null,null,0]
[null,null,null,null,null,null,null,null,null,0]
[null,null,null,null,null,null,null,null,null,0]
[null,null,null,null,null,null,null,null,null,0]
[null,null,null,null,null,null,null,null,null,0]
[null,null,null,null,null,null,null,null,null,0]
[null,null,null,null,null,null,null,null,null,0]
[null,null,null,null,null,null,null,null,null,0]
[null,null,null,null,null,null,null,null,null,0]
[null,null,null,null,null,null,null,null,null,0]
[null,null,null,null,null,null,null,null,null,0]
[null,null,null,null,null,null,null,null,null,0]
[null,null,null,null,null,null,null,null,null,0]
[null,null,null,null,null,null,null,null,null,0]
[null,null,null,null,null,null,null,null,null,0]
[null,null,null,null,null,null,null,null,null,0]
[null,null,null,null,null,null,null,null,null,0]
[null,null,null,null,null,null,null,null,null,0]
[null,null,null,null,null,null,null,null,null,0]
[null,null,null,null,null,null,null,null,null,0]
[null,null,null,null,null,null,null,null,null,0]
[null,null,null,null,null,null,null,null,null,0]
[null,null,null,null,null,null,null,null,null,0]

{"sheet":"MARS","index":2,"n_rows":55,"n_cols":11,"rows_kept":55,"cut":false,"hidden":false,"merged":[[1,4,1,5],[3,4,3,5]]}
[]
[null,null,null,null,"SUIVI DES MAILS ADMINISTRE "]
[]
[null,null,null,null,"2019-03-01"]
[null,null,null,null,"TOTAL COURRIERS",{"$f":"COUNT(D10:D55)","v":0}]
[null,null,null,null,"DANS LES DELAIS",{"$f":"COUNTIF(J10:J55,\"<=\"&5)-COUNTIF(J10:J55,\"<\"&1)","v":0}]
[null,null,null,null,"HORS DELAIS",{"$f":"COUNTIF(J10:J55,\">=6\")","v":0}]
[]
["DATE DE\nREMISE","AGENT\nTRAITANT","NOM\nADMINISTRE","DATE DE RECEPTION","N° IDENTIFIANT\nDEFENSE","NOM","PRENOM","OBJET","DATE DE REPONSE","DELAI DE REPONSE","OBSERVATIONS"]
[null,null,null,null,null,null,null,null,null,{"$f":"NETWORKDAYS(D10,I10)","v":0}]
[null,null,null,null,null,null,null,null,null,{"$f":"NETWORKDAYS(D11,I11)","v":0}]
[null,null,null,null,null,null,null,null,null,0]
[null,null,null,null,null,null,null,null,null,0]
[null,null,null,null,null,null,null,null,null,0]
[null,null,null,null,null,null,null,null,null,0]
[null,null,null,null,null,null,null,null,null,0]
[null,null,null,null,null,null,null,null,null,0]
[null,null,null,null,null,null,null,null,null,0]
[null,null,null,null,null,null,null,null,null,0]
[null,null,null,null,null,null,null,null,null,0]
[null,null,null,null,null,null,null,null,null,0]
[null,null,null,null,null,null,null,null,null,0]
[null,null,null,null,null,null,null,null,null,0]
[null,null,null,null,null,null,null,null,null,0]
[null,null,null,null,null,null,null,null,null,0]
[null,null,null,null,null,null,null,null,null,0]
[null,null,null,null,null,null,null,null,null,0]
[null,null,null,null,null,null,null,null,null,0]
[null,null,null,null,null,null,null,null,null,0]
[null,null,null,null,null,null,null,null,null,0]
[null,null,null,null,null,null,null,null,null,0]
[null,null,null,null,null,null,null,null,null,0]
[null,null,null,null,null,null,null,null,null,0]
[null,null,null,null,null,null,null,null,null,0]
[null,null,null,null,null,null,null,null,null,0]
[null,null,null,null,null,null,null,null,null,0]
[null,null,null,null,null,null,null,null,null,0]
[null,null,null,null,null,null,null,null,null,0]
[null,null,null,null,null,null,null,null,null,0]
[null,null,null,null,null,null,null,null,null,0]
[null,null,null,null,null,null,null,null,null,0]
[null,null,null,null,null,null,null,null,null,0]
[null,null,null,null,null,null,null,null,null,0]
[null,null,null,null,null,null,null,null,null,0]
[null,null,null,null,null,null,null,null,null,0]
[null,null,null,null,null,null,null,null,null,0]
[null,null,null,null,null,null,null,null,null,0]
[null,null,null,null,null,null,null,null,null,0]
[null,null,null,null,null,null,null,null,null,0]
[null,null,null,null,null,null,null,null,null,0]
[null,null,null,null,null,null,null,null,null,0]
[null,null,null,null,null,null,null,null,null,0]
[null,null,null,null,null,null,null,null,null,0]
[null,null,null,null,null,null,null,null,null,0]
[null,null,null,null,null,null,null,null,null,0]

{"sheet":"AVRIL","index":3,"n_rows":55,"n_cols":11,"rows_kept":55,"cut":false,"hidden":false,"merged":[[1,4,1,5],[3,4,3,5]]}
[]
[null,null,null,null,"SUIVI DES MAILS ADMINISTRE "]
[]
[null,null,null,null,"2019-04-01"]
[null,null,null,null,"TOTAL COURRIERS",{"$f":"COUNT(D10:D55)","v":0}]
[null,null,null,null,"DANS LES DELAIS",{"$f":"COUNTIF(J10:J55,\"<=\"&5)-COUNTIF(J10:J55,\"<\"&1)","v":0}]
[null,null,null,null,"HORS DELAIS",{"$f":"COUNTIF(J10:J55,\">=6\")","v":0}]
[]
["DATE DE\nREMISE","AGENT\nTRAITANT","NOM\nADMINISTRE","DATE DE RECEPTION","N° IDENTIFIANT\nDEFENSE","NOM","PRENOM","OBJET","DATE DE REPONSE","DELAI DE REPONSE","OBSERVATIONS"]
[null,null,null,null,null,null,null,null,null,{"$f":"NETWORKDAYS(D10,I10)","v":0}]
[null,null,null,null,null,null,null,null,null,{"$f":"NETWORKDAYS(D11,I11)","v":0}]
[null,null,null,null,null,null,null,null,null,0]
[null,null,null,null,null,null,null,null,null,0]
[null,null,null,null,null,null,null,null,null,0]
[null,null,null,null,null,null,null,null,null,0]
[null,null,null,null,null,null,null,null,null,0]
[null,null,null,null,null,null,null,null,null,0]
[null,null,null,null,null,null,null,null,null,0]
[null,null,null,null,null,null,null,null,null,0]
[null,null,null,null,null,null,null,null,null,0]
[null,null,null,null,null,null,null,null,null,0]
[null,null,null,null,null,null,null,null,null,0]
[null,null,null,null,null,null,null,null,null,0]
[null,null,null,null,null,null,null,null,null,0]
[null,null,null,null,null,null,null,null,null,0]
[null,null,null,null,null,null,null,null,null,0]
[null,null,null,null,null,null,null,null,null,0]
[null,null,null,null,null,null,null,null,null,0]
[null,null,null,null,null,null,null,null,null,0]
[null,null,null,null,null,null,null,null,null,0]
[null,null,null,null,null,null,null,null,null,0]
[null,null,null,null,null,null,null,null,null,0]
[null,null,null,null,null,null,null,null,null,0]
[null,null,null,null,null,null,null,null,null,0]
[null,null,null,null,null,null,null,null,null,0]
[null,null,null,null,null,null,null,null,null,0]
[null,null,null,null,null,null,null,null,null,0]
[null,null,null,null,null,null,null,null,null,0]
[null,null,null,null,null,null,null,null,null,0]
[null,null,null,null,null,null,null,null,null,0]
[null,null,null,null,null,null,null,null,null,0]
[null,null,null,null,null,null,null,null,null,0]
[null,null,null,null,null,null,null,null,null,0]
[null,null,null,null,null,null,null,null,null,0]
[null,null,null,null,null,null,null,null,null,0]
[null,null,null,null,null,null,null,null,null,0]
[null,null,null,null,null,null,null,null,null,0]
[null,null,null,null,null,null,null,null,null,0]
[null,null,null,null,null,null,null,null,null,0]
[null,null,null,null,null,null,null,null,null,0]
[null,null,null,null,null,null,null,null,null,0]
[null,null,null,null,null,null,null,null,null,0]
[null,null,null,null,null,null,null,null,null,0]
[null,null,null,null,null,null,null,null,null,0]
[null,null,null,null,null,null,null,null,null,0]

{"sheet":"MAI","index":4,"n_rows":55,"n_cols":11,"rows_kept":55,"cut":false,"hidden":false,"merged":[[1,4,1,5],[3,4,3,5]]}
[]
[null,null,null,null,"SUIVI DES MAILS ADMINISTRE "]
[]
[null,null,null,null,"2019-05-01"]
[null,null,null,null,"TOTAL COURRIERS",{"$f":"COUNT(D10:D55)","v":0}]
[null,null,null,null,"DANS LES DELAIS",{"$f":"COUNTIF(J10:J55,\"<=\"&5)-COUNTIF(J10:J55,\"<\"&1)","v":0}]
[null,null,null,null,"HORS DELAIS",{"$f":"COUNTIF(J10:J55,\">=6\")","v":0}]
[]
["DATE DE\nREMISE","AGENT\nTRAITANT","NOM\nADMINISTRE","DATE DE RECEPTION","N° IDENTIFIANT\nDEFENSE","NOM","PRENOM","OBJET","DATE DE REPONSE","DELAI DE REPONSE","OBSERVATIONS"]
[null,null,null,null,null,null,null,null,null,{"$f":"NETWORKDAYS(D10,I10)","v":0}]
[null,null,null,null,null,null,null,null,null,{"$f":"NETWORKDAYS(D11,I11)","v":0}]
[null,null,null,null,null,null,null,null,null,0]
[null,null,null,null,null,null,null,null,null,0]
[null,null,null,null,null,null,null,null,null,0]
[null,null,null,null,null,null,null,null,null,0]
[null,null,null,null,null,null,null,null,null,0]
[null,null,null,null,null,null,null,null,null,0]
[null,null,null,null,null,null,null,null,null,0]
[null,null,null,null,null,null,null,null,null,0]
[null,null,null,null,null,null,null,null,null,0]
[null,null,null,null,null,null,null,null,null,0]
[null,null,null,null,null,null,null,null,null,0]
[null,null,null,null,null,null,null,null,null,0]
[null,null,null,null,null,null,null,null,null,0]
[null,null,null,null,null,null,null,null,null,0]
[null,null,null,null,null,null,null,null,null,0]
[null,null,null,null,null,null,null,null,null,0]
[null,null,null,null,null,null,null,null,null,0]
[null,null,null,null,null,null,null,null,null,0]
[null,null,null,null,null,null,null,null,null,0]
[null,null,null,null,null,null,null,null,null,0]
[null,null,null,null,null,null,null,null,null,0]
[null,null,null,null,null,null,null,null,null,0]
[null,null,null,null,null,null,null,null,null,0]
[null,null,null,null,null,null,null,null,null,0]
[null,null,null,null,null,null,null,null,null,0]
[null,null,null,null,null,null,null,null,null,0]
[null,null,null,null,null,null,null,null,null,0]
[null,null,null,null,null,null,null,null,null,0]
[null,null,null,null,null,null,null,null,null,0]
[null,null,null,null,null,null,null,null,null,0]
[null,null,null,null,null,null,null,null,null,0]
[null,null,null,null,null,null,null,null,null,0]
[null,null,null,null,null,null,null,null,null,0]
[null,null,null,null,null,null,null,null,null,0]
[null,null,null,null,null,null,null,null,null,0]
[null,null,null,null,null,null,null,null,null,0]
[null,null,null,null,null,null,null,null,null,0]
[null,null,null,null,null,null,null,null,null,0]
[null,null,null,null,null,null,null,null,null,0]
[null,null,null,null,null,null,null,null,null,0]
[null,null,null,null,null,null,null,null,null,0]
[null,null,null,null,null,null,null,null,null,0]
[null,null,null,null,null,null,null,null,null,0]
[null,null,null,null,null,null,null,null,null,0]

{"sheet":"JUIN","index":5,"n_rows":55,"n_cols":11,"rows_kept":55,"cut":false,"hidden":false,"merged":[[1,4,1,5],[3,4,3,5]]}
[]
[null,null,null,null,"SUIVI DES MAILS ADMINISTRE "]
[]
[null,null,null,null,"2019-06-01"]
[null,null,null,null,"TOTAL COURRIERS",{"$f":"COUNT(D10:D55)","v":0}]
[null,null,null,null,"DANS LES DELAIS",{"$f":"COUNTIF(J10:J55,\"<=\"&5)-COUNTIF(J10:J55,\"<\"&1)","v":0}]
[null,null,null,null,"HORS DELAIS",{"$f":"COUNTIF(J10:J55,\">=6\")","v":0}]
[]
["DATE DE\nREMISE","AGENT\nTRAITANT","NOM\nADMINISTRE","DATE DE RECEPTION","N° IDENTIFIANT\nDEFENSE","NOM","PRENOM","OBJET","DATE DE REPONSE","DELAI DE REPONSE","OBSERVATIONS"]
[null,null,null,null,null,null,null,null,null,{"$f":"NETWORKDAYS(D10,I10)","v":0}]
[null,null,null,null,null,null,null,null,null,{"$f":"NETWORKDAYS(D11,I11)","v":0}]
[null,null,null,null,null,null,null,null,null,0]
[null,null,null,null,null,null,null,null,null,0]
[null,null,null,null,null,null,null,null,null,0]
[null,null,null,null,null,null,null,null,null,0]
[null,null,null,null,null,null,null,null,null,0]
[null,null,null,null,null,null,null,null,null,0]
[null,null,null,null,null,null,null,null,null,0]
[null,null,null,null,null,null,null,null,null,0]
[null,null,null,null,null,null,null,null,null,0]
[null,null,null,null,null,null,null,null,null,0]
[null,null,null,null,null,null,null,null,null,0]
[null,null,null,null,null,null,null,null,null,0]
[null,null,null,null,null,null,null,null,null,0]
[null,null,null,null,null,null,null,null,null,0]
[null,null,null,null,null,null,null,null,null,0]
[null,null,null,null,null,null,null,null,null,0]
[null,null,null,null,null,null,null,null,null,0]
[null,null,null,null,null,null,null,null,null,0]
[null,null,null,null,null,null,null,null,null,0]
[null,null,null,null,null,null,null,null,null,0]
[null,null,null,null,null,null,null,null,null,0]
[null,null,null,null,null,null,null,null,null,0]
[null,null,null,null,null,null,null,null,null,0]
[null,null,null,null,null,null,null,null,null,0]
[null,null,null,null,null,null,null,null,null,0]
[null,null,null,null,null,null,null,null,null,0]
[null,null,null,null,null,null,null,null,null,0]
[null,null,null,null,null,null,null,null,null,0]
[null,null,null,null,null,null,null,null,null,0]
[null,null,null,null,null,null,null,null,null,0]
[null,null,null,null,null,null,null,null,null,0]
[null,null,null,null,null,null,null,null,null,0]
[null,null,null,null,null,null,null,null,null,0]
[null,null,null,null,null,null,null,null,null,0]
[null,null,null,null,null,null,null,null,null,0]
[null,null,null,null,null,null,null,null,null,0]
[null,null,null,null,null,null,null,null,null,0]
[null,null,null,null,null,null,null,null,null,0]
[null,null,null,null,null,null,null,null,null,0]
[null,null,null,null,null,null,null,null,null,0]
[null,null,null,null,null,null,null,null,null,0]
[null,null,null,null,null,null,null,null,null,0]
[null,null,null,null,null,null,null,null,null,0]
[null,null,null,null,null,null,null,null,null,0]

{"sheet":"JUILLET","index":6,"n_rows":55,"n_cols":11,"rows_kept":55,"cut":false,"hidden":false,"merged":[[1,4,1,5],[3,4,3,5]]}
[]
[null,null,null,null,"SUIVI DES MAILS ADMINISTRE "]
[]
[null,null,null,null,"2019-07-01"]
[null,null,null,null,"TOTAL COURRIERS",{"$f":"COUNT(D10:D55)","v":0}]
[null,null,null,null,"DANS LES DELAIS",{"$f":"COUNTIF(J10:J55,\"<=\"&5)-COUNTIF(J10:J55,\"<\"&1)","v":0}]
[null,null,null,null,"HORS DELAIS",{"$f":"COUNTIF(J10:J55,\">=6\")","v":0}]
[]
["DATE DE\nREMISE","AGENT\nTRAITANT","NOM\nADMINISTRE","DATE DE RECEPTION","N° IDENTIFIANT\nDEFENSE","NOM","PRENOM","OBJET","DATE DE REPONSE","DELAI DE REPONSE","OBSERVATIONS"]
[null,null,null,null,null,null,null,null,null,{"$f":"NETWORKDAYS(D10,I10)","v":0}]
[null,null,null,null,null,null,null,null,null,{"$f":"NETWORKDAYS(D11,I11)","v":0}]
[null,null,null,null,null,null,null,null,null,0]
[null,null,null,null,null,null,null,null,null,0]
[null,null,null,null,null,null,null,null,null,0]
[null,null,null,null,null,null,null,null,null,0]
[null,null,null,null,null,null,null,null,null,0]
[null,null,null,null,null,null,null,null,null,0]
[null,null,null,null,null,null,null,null,null,0]
[null,null,null,null,null,null,null,null,null,0]
[null,null,null,null,null,null,null,null,null,0]
[null,null,null,null,null,null,null,null,null,0]
[null,null,null,null,null,null,null,null,null,0]
[null,null,null,null,null,null,null,null,null,0]
[null,null,null,null,null,null,null,null,null,0]
[null,null,null,null,null,null,null,null,null,0]
[null,null,null,null,null,null,null,null,null,0]
[null,null,null,null,null,null,null,null,null,0]
[null,null,null,null,null,null,null,null,null,0]
[null,null,null,null,null,null,null,null,null,0]
[null,null,null,null,null,null,null,null,null,0]
[null,null,null,null,null,null,null,null,null,0]
[null,null,null,null,null,null,null,null,null,0]
[null,null,null,null,null,null,null,null,null,0]
[null,null,null,null,null,null,null,null,null,0]
[null,null,null,null,null,null,null,null,null,0]
[null,null,null,null,null,null,null,null,null,0]
[null,null,null,null,null,null,null,null,null,0]
[null,null,null,null,null,null,null,null,null,0]
[null,null,null,null,null,null,null,null,null,0]
[null,null,null,null,null,null,null,null,null,0]
[null,null,null,null,null,null,null,null,null,0]
[null,null,null,null,null,null,null,null,null,0]
[null,null,null,null,null,null,null,null,null,0]
[null,null,null,null,null,null,null,null,null,0]
[null,null,null,null,null,null,null,null,null,0]
[null,null,null,null,null,null,null,null,null,0]
[null,null,null,null,null,null,null,null,null,0]
[null,null,null,null,null,null,null,null,null,0]
[null,null,null,null,null,null,null,null,null,0]
[null,null,null,null,null,null,null,null,null,0]
[null,null,null,null,null,null,null,null,null,0]
[null,null,null,null,null,null,null,null,null,0]
[null,null,null,null,null,null,null,null,null,0]
[null,null,null,null,null,null,null,null,null,0]
[null,null,null,null,null,null,null,null,null,0]

{"sheet":"AOUT","index":7,"n_rows":55,"n_cols":11,"rows_kept":55,"cut":false,"hidden":false,"merged":[[1,4,1,5],[3,4,3,5]]}
[]
[null,null,null,null,"SUIVI DES MAILS ADMINISTRE "]
[]
[null,null,null,null,"2019-08-01"]
[null,null,null,null,"TOTAL COURRIERS",{"$f":"COUNT(D10:D55)","v":0}]
[null,null,null,null,"DANS LES DELAIS",{"$f":"COUNTIF(J10:J55,\"<=\"&5)-COUNTIF(J10:J55,\"<\"&1)","v":0}]
[null,null,null,null,"HORS DELAIS",{"$f":"COUNTIF(J10:J55,\">=6\")","v":0}]
[]
["DATE DE\nREMISE","AGENT\nTRAITANT","NOM\nADMINISTRE","DATE DE RECEPTION","N° IDENTIFIANT\nDEFENSE","NOM","PRENOM","OBJET","DATE DE REPONSE","DELAI DE REPONSE","OBSERVATIONS"]
[null,null,null,null,null,null,null,null,null,{"$f":"NETWORKDAYS(D10,I10)","v":0}]
[null,null,null,null,null,null,null,null,null,{"$f":"NETWORKDAYS(D11,I11)","v":0}]
[null,null,null,null,null,null,null,null,null,0]
[null,null,null,null,null,null,null,null,null,0]
[null,null,null,null,null,null,null,null,null,0]
[null,null,null,null,null,null,null,null,null,0]
[null,null,null,null,null,null,null,null,null,0]
[null,null,null,null,null,null,null,null,null,0]
[null,null,null,null,null,null,null,null,null,0]
[null,null,null,null,null,null,null,null,null,0]
[null,null,null,null,null,null,null,null,null,0]
[null,null,null,null,null,null,null,null,null,0]
[null,null,null,null,null,null,null,null,null,0]
[null,null,null,null,null,null,null,null,null,0]
[null,null,null,null,null,null,null,null,null,0]
[null,null,null,null,null,null,null,null,null,0]
[null,null,null,null,null,null,null,null,null,0]
[null,null,null,null,null,null,null,null,null,0]
[null,null,null,null,null,null,null,null,null,0]
[null,null,null,null,null,null,null,null,null,0]
[null,null,null,null,null,null,null,null,null,0]
[null,null,null,null,null,null,null,null,null,0]
[null,null,null,null,null,null,null,null,null,0]
[null,null,null,null,null,null,null,null,null,0]
[null,null,null,null,null,null,null,null,null,0]
[null,null,null,null,null,null,null,null,null,0]
[null,null,null,null,null,null,null,null,null,0]
[null,null,null,null,null,null,null,null,null,0]
[null,null,null,null,null,null,null,null,null,0]
[null,null,null,null,null,null,null,null,null,0]
[null,null,null,null,null,null,null,null,null,0]
[null,null,null,null,null,null,null,null,null,0]
[null,null,null,null,null,null,null,null,null,0]
[null,null,null,null,null,null,null,null,null,0]
[null,null,null,null,null,null,null,null,null,0]
[null,null,null,null,null,null,null,null,null,0]
[null,null,null,null,null,null,null,null,null,0]
[null,null,null,null,null,null,null,null,null,0]
[null,null,null,null,null,null,null,null,null,0]
[null,null,null,null,null,null,null,null,null,0]
[null,null,null,null,null,null,null,null,null,0]
[null,null,null,null,null,null,null,null,null,0]
[null,null,null,null,null,null,null,null,null,0]
[null,null,null,null,null,null,null,null,null,0]
[null,null,null,null,null,null,null,null,null,0]
[null,null,null,null,null,null,null,null,null,0]

{"sheet":"SEPTEMBRE","index":8,"n_rows":55,"n_cols":11,"rows_kept":55,"cut":false,"hidden":false,"merged":[[1,4,1,5],[3,4,3,5]]}
[]
[null,null,null,null,"SUIVI DES MAILS ADMINISTRE "]
[]
[null,null,null,null,"2019-09-01"]
[null,null,null,null,"TOTAL COURRIERS",{"$f":"COUNT(D10:D55)","v":0}]
[null,null,null,null,"DANS LES DELAIS",{"$f":"COUNTIF(J10:J55,\"<=\"&5)-COUNTIF(J10:J55,\"<\"&1)","v":0}]
[null,null,null,null,"HORS DELAIS",{"$f":"COUNTIF(J10:J55,\">=6\")","v":0}]
[]
["DATE DE\nREMISE","AGENT\nTRAITANT","NOM\nADMINISTRE","DATE DE RECEPTION","N° IDENTIFIANT\nDEFENSE","NOM","PRENOM","OBJET","DATE DE REPONSE","DELAI DE REPONSE","OBSERVATIONS"]
[null,null,null,null,null,null,null,null,null,{"$f":"NETWORKDAYS(D10,I10)","v":0}]
[null,null,null,null,null,null,null,null,null,{"$f":"NETWORKDAYS(D11,I11)","v":0}]
[null,null,null,null,null,null,null,null,null,0]
[null,null,null,null,null,null,null,null,null,0]
[null,null,null,null,null,null,null,null,null,0]
[null,null,null,null,null,null,null,null,null,0]
[null,null,null,null,null,null,null,null,null,0]
[null,null,null,null,null,null,null,null,null,0]
[null,null,null,null,null,null,null,null,null,0]
[null,null,null,null,null,null,null,null,null,0]
[null,null,null,null,null,null,null,null,null,0]
[null,null,null,null,null,null,null,null,null,0]
[null,null,null,null,null,null,null,null,null,0]
[null,null,null,null,null,null,null,null,null,0]
[null,null,null,null,null,null,null,null,null,0]
[null,null,null,null,null,null,null,null,null,0]
[null,null,null,null,null,null,null,null,null,0]
[null,null,null,null,null,null,null,null,null,0]
[null,null,null,null,null,null,null,null,null,0]
[null,null,null,null,null,null,null,null,null,0]
[null,null,null,null,null,null,null,null,null,0]
[null,null,null,null,null,null,null,null,null,0]
[null,null,null,null,null,null,null,null,null,0]
[null,null,null,null,null,null,null,null,null,0]
[null,null,null,null,null,null,null,null,null,0]
[null,null,null,null,null,null,null,null,null,0]
[null,null,null,null,null,null,null,null,null,0]
[null,null,null,null,null,null,null,null,null,0]
[null,null,null,null,null,null,null,null,null,0]
[null,null,null,null,null,null,null,null,null,0]
[null,null,null,null,null,null,null,null,null,0]
[null,null,null,null,null,null,null,null,null,0]
[null,null,null,null,null,null,null,null,null,0]
[null,null,null,null,null,null,null,null,null,0]
[null,null,null,null,null,null,null,null,null,0]
[null,null,null,null,null,null,null,null,null,0]
[null,null,null,null,null,null,null,null,null,0]
[null,null,null,null,null,null,null,null,null,0]
[null,null,null,null,null,null,null,null,null,0]
[null,null,null,null,null,null,null,null,null,0]
[null,null,null,null,null,null,null,null,null,0]
[null,null,null,null,null,null,null,null,null,0]
[null,null,null,null,null,null,null,null,null,0]
[null,null,null,null,null,null,null,null,null,0]
[null,null,null,null,null,null,null,null,null,0]
[null,null,null,null,null,null,null,null,null,0]

{"sheet":"OCTOBRE","index":9,"n_rows":55,"n_cols":11,"rows_kept":55,"cut":false,"hidden":false,"merged":[[1,4,1,5],[3,4,3,5]]}
[]
[null,null,null,null,"SUIVI DES MAILS ADMINISTRE "]
[]
[null,null,null,null,"2019-10-01"]
[null,null,null,null,"TOTAL COURRIERS",{"$f":"COUNT(D10:D55)","v":0}]
[null,null,null,null,"DANS LES DELAIS",{"$f":"COUNTIF(J10:J55,\"<=\"&5)-COUNTIF(J10:J55,\"<\"&1)","v":0}]
[null,null,null,null,"HORS DELAIS",{"$f":"COUNTIF(J10:J55,\">=6\")","v":0}]
[]
["DATE DE\nREMISE","AGENT\nTRAITANT","NOM\nADMINISTRE","DATE DE RECEPTION","N° IDENTIFIANT\nDEFENSE","NOM","PRENOM","OBJET","DATE DE REPONSE","DELAI DE REPONSE","OBSERVATIONS"]
[null,null,null,null,null,null,null,null,null,{"$f":"NETWORKDAYS(D10,I10)","v":0}]
[null,null,null,null,null,null,null,null,null,{"$f":"NETWORKDAYS(D11,I11)","v":0}]
[null,null,null,null,null,null,null,null,null,0]
[null,null,null,null,null,null,null,null,null,0]
[null,null,null,null,null,null,null,null,null,0]
[null,null,null,null,null,null,null,null,null,0]
[null,null,null,null,null,null,null,null,null,0]
[null,null,null,null,null,null,null,null,null,0]
[null,null,null,null,null,null,null,null,null,0]
[null,null,null,null,null,null,null,null,null,0]
[null,null,null,null,null,null,null,null,null,0]
[null,null,null,null,null,null,null,null,null,0]
[null,null,null,null,null,null,null,null,null,0]
[null,null,null,null,null,null,null,null,null,0]
[null,null,null,null,null,null,null,null,null,0]
[null,null,null,null,null,null,null,null,null,0]
[null,null,null,null,null,null,null,null,null,0]
[null,null,null,null,null,null,null,null,null,0]
[null,null,null,null,null,null,null,null,null,0]
[null,null,null,null,null,null,null,null,null,0]
[null,null,null,null,null,null,null,null,null,0]
[null,null,null,null,null,null,null,null,null,0]
[null,null,null,null,null,null,null,null,null,0]
[null,null,null,null,null,null,null,null,null,0]
[null,null,null,null,null,null,null,null,null,0]
[null,null,null,null,null,null,null,null,null,0]
[null,null,null,null,null,null,null,null,null,0]
[null,null,null,null,null,null,null,null,null,0]
[null,null,null,null,null,null,null,null,null,0]
[null,null,null,null,null,null,null,null,null,0]
[null,null,null,null,null,null,null,null,null,0]
[null,null,null,null,null,null,null,null,null,0]
[null,null,null,null,null,null,null,null,null,0]
[null,null,null,null,null,null,null,null,null,0]
[null,null,null,null,null,null,null,null,null,0]
[null,null,null,null,null,null,null,null,null,0]
[null,null,null,null,null,null,null,null,null,0]
[null,null,null,null,null,null,null,null,null,0]
[null,null,null,null,null,null,null,null,null,0]
[null,null,null,null,null,null,null,null,null,0]
[null,null,null,null,null,null,null,null,null,0]
[null,null,null,null,null,null,null,null,null,0]
[null,null,null,null,null,null,null,null,null,0]
[null,null,null,null,null,null,null,null,null,0]
[null,null,null,null,null,null,null,null,null,0]
[null,null,null,null,null,null,null,null,null,0]

{"sheet":"NOVEMBRE","index":10,"n_rows":55,"n_cols":11,"rows_kept":55,"cut":false,"hidden":false,"merged":[[1,4,1,5],[3,4,3,5]]}
[]
[null,null,null,null,"SUIVI DES MAILS ADMINISTRE "]
[]
[null,null,null,null,"2019-11-01"]
[null,null,null,null,"TOTAL COURRIERS",{"$f":"COUNT(D10:D55)","v":0}]
[null,null,null,null,"DANS LES DELAIS",{"$f":"COUNTIF(J10:J55,\"<=\"&5)-COUNTIF(J10:J55,\"<\"&1)","v":0}]
[null,null,null,null,"HORS DELAIS",{"$f":"COUNTIF(J10:J55,\">=6\")","v":0}]
[]
["DATE DE\nREMISE","AGENT\nTRAITANT","NOM\nADMINISTRE","DATE DE RECEPTION","N° IDENTIFIANT\nDEFENSE","NOM","PRENOM","OBJET","DATE DE REPONSE","DELAI DE REPONSE","OBSERVATIONS"]
[null,null,null,null,null,null,null,null,null,{"$f":"NETWORKDAYS(D10,I10)","v":0}]
[null,null,null,null,null,null,null,null,null,{"$f":"NETWORKDAYS(D11,I11)","v":0}]
[null,null,null,null,null,null,null,null,null,0]
[null,null,null,null,null,null,null,null,null,0]
[null,null,null,null,null,null,null,null,null,0]
[null,null,null,null,null,null,null,null,null,0]
[null,null,null,null,null,null,null,null,null,0]
[null,null,null,null,null,null,null,null,null,0]
[null,null,null,null,null,null,null,null,null,0]
[null,null,null,null,null,null,null,null,null,0]
[null,null,null,null,null,null,null,null,null,0]
[null,null,null,null,null,null,null,null,null,0]
[null,null,null,null,null,null,null,null,null,0]
[null,null,null,null,null,null,null,null,null,0]
[null,null,null,null,null,null,null,null,null,0]
[null,null,null,null,null,null,null,null,null,0]
[null,null,null,null,null,null,null,null,null,0]
[null,null,null,null,null,null,null,null,null,0]
[null,null,null,null,null,null,null,null,null,0]
[null,null,null,null,null,null,null,null,null,0]
[null,null,null,null,null,null,null,null,null,0]
[null,null,null,null,null,null,null,null,null,0]
[null,null,null,null,null,null,null,null,null,0]
[null,null,null,null,null,null,null,null,null,0]
[null,null,null,null,null,null,null,null,null,0]
[null,null,null,null,null,null,null,null,null,0]
[null,null,null,null,null,null,null,null,null,0]
[null,null,null,null,null,null,null,null,null,0]
[null,null,null,null,null,null,null,null,null,0]
[null,null,null,null,null,null,null,null,null,0]
[null,null,null,null,null,null,null,null,null,0]
[null,null,null,null,null,null,null,null,null,0]
[null,null,null,null,null,null,null,null,null,0]
[null,null,null,null,null,null,null,null,null,0]
[null,null,null,null,null,null,null,null,null,0]
[null,null,null,null,null,null,null,null,null,0]
[null,null,null,null,null,null,null,null,null,0]
[null,null,null,null,null,null,null,null,null,0]
[null,null,null,null,null,null,null,null,null,0]
[null,null,null,null,null,null,null,null,null,0]
[null,null,null,null,null,null,null,null,null,0]
[null,null,null,null,null,null,null,null,null,0]
[null,null,null,null,null,null,null,null,null,0]
[null,null,null,null,null,null,null,null,null,0]
[null,null,null,null,null,null,null,null,null,0]
[null,null,null,null,null,null,null,null,null,0]

{"sheet":"DECEMBRE","index":11,"n_rows":55,"n_cols":11,"rows_kept":55,"cut":false,"hidden":false,"merged":[[1,4,1,5],[3,4,3,5]]}
[]
[null,null,null,null,"SUIVI DES MAILS ADMINISTRE "]
[]
[null,null,null,null,"2019-12-01"]
[null,null,null,null,"TOTAL COURRIERS",{"$f":"COUNT(D10:D55)","v":0}]
[null,null,null,null,"DANS LES DELAIS",{"$f":"COUNTIF(J10:J55,\"<=\"&5)-COUNTIF(J10:J55,\"<\"&1)","v":0}]
[null,null,null,null,"HORS DELAIS",{"$f":"COUNTIF(J10:J55,\">=6\")","v":0}]
[]
["DATE DE\nREMISE","AGENT\nTRAITANT","NOM\nADMINISTRE","DATE DE RECEPTION","N° IDENTIFIANT\nDEFENSE","NOM","PRENOM","OBJET","DATE DE REPONSE","DELAI DE REPONSE","OBSERVATIONS"]
[null,null,null,null,null,null,null,null,null,{"$f":"NETWORKDAYS(D10,I10)","v":0}]
[null,null,null,null,null,null,null,null,null,{"$f":"NETWORKDAYS(D11,I11)","v":0}]
[null,null,null,null,null,null,null,null,null,0]
[null,null,null,null,null,null,null,null,null,0]
[null,null,null,null,null,null,null,null,null,0]
[null,null,null,null,null,null,null,null,null,0]
[null,null,null,null,null,null,null,null,null,0]
[null,null,null,null,null,null,null,null,null,0]
[null,null,null,null,null,null,null,null,null,0]
[null,null,null,null,null,null,null,null,null,0]
[null,null,null,null,null,null,null,null,null,0]
[null,null,null,null,null,null,null,null,null,0]
[null,null,null,null,null,null,null,null,null,0]
[null,null,null,null,null,null,null,null,null,0]
[null,null,null,null,null,null,null,null,null,0]
[null,null,null,null,null,null,null,null,null,0]
[null,null,null,null,null,null,null,null,null,0]
[null,null,null,null,null,null,null,null,null,0]
[null,null,null,null,null,null,null,null,null,0]
[null,null,null,null,null,null,null,null,null,0]
[null,null,null,null,null,null,null,null,null,0]
[null,null,null,null,null,null,null,null,null,0]
[null,null,null,null,null,null,null,null,null,0]
[null,null,null,null,null,null,null,null,null,0]
[null,null,null,null,null,null,null,null,null,0]
[null,null,null,null,null,null,null,null,null,0]
[null,null,null,null,null,null,null,null,null,0]
[null,null,null,null,null,null,null,null,null,0]
[null,null,null,null,null,null,null,null,null,0]
[null,null,null,null,null,null,null,null,null,0]
[null,null,null,null,null,null,null,null,null,0]
[null,null,null,null,null,null,null,null,null,0]
[null,null,null,null,null,null,null,null,null,0]
[null,null,null,null,null,null,null,null,null,0]
[null,null,null,null,null,null,null,null,null,0]
[null,null,null,null,null,null,null,null,null,0]
[null,null,null,null,null,null,null,null,null,0]
[null,null,null,null,null,null,null,null,null,0]
[null,null,null,null,null,null,null,null,null,0]
[null,null,null,null,null,null,null,null,null,0]
[null,null,null,null,null,null,null,null,null,0]
[null,null,null,null,null,null,null,null,null,0]
[null,null,null,null,null,null,null,null,null,0]
[null,null,null,null,null,null,null,null,null,0]
[null,null,null,null,null,null,null,null,null,0]
[null,null,null,null,null,null,null,null,null,0]

{"sheet":"Feuil2","index":12,"n_rows":15,"n_cols":1,"rows_kept":15,"cut":false,"hidden":true,"merged":[]}
["DEMANDE D'ATTESTATION PROVISOIRE"]
["DEMANDE D'ESS/CERTIFICAT MILITAIRE"]
["DEMANDE D'EXEMPTION"]
["DEMANDE D'ID"]
["DOUBLE NATIONAL"]
["MODELE C"]
["OBJECTEUR DE CONSCIENCE"]
["RECENSEMENT"]
["RENSEIGNEMENT JDC"]
["ATTESTATION + 25 ANS"]
["CHANGEMENT DE SITUATION / ADRESSE"]
["CONVOCATION JDC"]
["CONVOCATION PRIORITAIRE JDC"]
["DECLARATION D'OPTION"]
["DEMANDE ATTESTATION JDC"]